bitfinex/quotes_BTCUSD_20220111
["timestamp","ask_amount","ask_price","bid_price","bid_amount"]
[1641911460271,1.97242296,41412.0,41411.0,0.004]
[1641911460517,2.07242296,41412.0,41411.0,0.004]
[1641911460714,2.12242296,41412.0,41411.0,0.004]
[1641911460916,0.24800439,41409.0,41402.0,0.00032833]
[1641911461118,0.01745682,41404.0,41402.0,0.00032833]
[1641911461316,2.10938819,41403.0,41402.0,0.00032833]
[1641911461513,0.8,41402.0,41392.0,0.07247639]
[1641911461718,0.420587,41401.0,41392.0,0.07247639]
[1641911461915,0.34264399,41398.0,41386.0,0.34079223]
[1641911462113,0.480992,41397.0,41386.0,0.34079223]
[1641911462313,0.85504302,41397.0,41385.0,1.0]
[1641911462616,0.27537173,41388.0,41385.0,1.0]
[1641911462818,0.27537173,41388.0,41386.0,0.376187]
[1641911463016,0.43202582,41387.0,41385.0,1.0]
[1641911463215,0.43202582,41387.0,41384.0,0.0999]
[1641911463216,1.3,41385.0,41384.0,0.0999]
[1641911463416,2.10821282,41385.0,41384.0,0.0999]
[1641911463719,2.10821282,41385.0,41378.0,0.0011]
[1641911463720,0.12085128,41382.0,41378.0,0.0011]
[1641911463917,0.23605593,41380.0,41378.0,0.0011]
[1641911464171,0.420587,41379.0,41378.0,0.0011]
[1641911465269,0.82243905,41379.0,41378.0,0.0011]
[1641911465970,0.83143905,41379.0,41378.0,0.0011]
[1641911466378,0.95391905,41379.0,41378.0,0.0011]
[1641911466573,0.97907905,41379.0,41376.0,0.00037236]
[1641911466774,0.06169772,41378.0,41376.0,0.00037236]
[1641911466977,0.06169772,41378.0,41368.0,0.0011]
[1641911466978,0.12088804,41374.0,41368.0,0.0011]
[1641911467176,0.0012192,41371.0,41368.0,0.0011]
[1641911467377,0.42869171,41369.0,41368.0,0.0011]
[1641911467574,0.84927871,41369.0,41368.0,0.0011]
[1641911468022,0.85427871,41369.0,41368.0,0.0071]
[1641911468223,0.65,41368.0,41361.0,0.0420791]
[1641911468425,0.420587,41367.0,41361.0,0.0420791]
[1641911468728,1.3,41365.0,41339.0,0.242735]
[1641911468928,1.3,41365.0,41339.0,0.001]
[1641911468929,0.28268415,41347.0,41339.0,0.001]
[1641911469126,0.38424656,41347.0,41345.0,0.405]
[1641911469325,0.00129673,41348.0,41345.0,0.405]
[1641911469524,0.04228,41351.0,41346.0,0.376187]
[1641911469924,0.04228,41351.0,41350.0,1.87344864]
[1641911470125,0.06428,41351.0,41350.0,0.136187]
[1641911470523,0.022,41351.0,41348.0,0.060451]
[1641911470723,0.022,41351.0,41346.0,0.002]
[1641911470924,0.0664,41351.0,41346.0,0.002]
[1641911471226,0.0664,41351.0,41344.0,0.001125]
[1641911471426,0.0444,41351.0,41345.0,0.060455]
[1641911471666,0.39015115,41355.0,41346.0,0.24616738]
[1641911471667,0.00125265,41355.0,41346.0,0.24616738]
[1641911471866,0.00129257,41362.0,41350.0,0.278629]
[1641911472068,0.006,41351.0,41346.0,0.24739923]
[1641911472267,0.006,41351.0,41349.0,0.060454]
[1641911472470,1.04070381,41351.0,41350.0,0.276433]
[1641911472666,1.04070381,41351.0,41346.0,0.24616738]
[1641911472667,0.2,41349.0,41338.0,0.009674]
[1641911472867,0.11988463,41346.0,41338.0,0.109574]
[1641911473067,0.16988463,41346.0,41338.0,0.109574]
[1641911473267,0.11931463,41346.0,41342.0,0.00530144]
[1641911473467,0.05991232,41345.0,41344.0,0.26440126]
[1641911473669,0.06116166,41345.0,41342.0,0.00171516]
[1641911473866,0.00124934,41345.0,41342.0,0.00171516]
[1641911474071,0.02624934,41345.0,41342.0,0.00171516]
[1641911474266,0.025,41345.0,41342.0,0.06217916]
[1641911474467,0.025,41345.0,41342.0,0.00171516]
[1641911474670,0.00126499,41344.0,41342.0,0.00171516]
[1641911475071,0.376464,41343.0,41336.0,0.0011]
[1641911475276,0.00123746,41339.0,41336.0,0.0011]
[1641911475522,0.65,41337.0,41333.0,0.001125]
[1641911475722,0.45695584,41335.0,41333.0,0.001125]
[1641911475922,0.553051,41335.0,41333.0,0.001125]
[1641911476121,0.603051,41335.0,41333.0,0.001125]
[1641911476321,0.35,41334.0,41333.0,0.001125]
[1641911476823,0.0444,41334.0,41333.0,0.001125]
[1641911477423,0.3888985,41337.0,41333.0,0.001125]
[1641911477621,0.3888985,41337.0,41333.0,0.122069]
[1641911477821,0.3581216,41347.0,41333.0,0.122069]
[1641911478021,0.022,41337.0,41333.0,0.122069]
[1641911478221,0.022,41337.0,41334.0,0.376464]
[1641911478523,0.022,41337.0,41333.0,0.001125]
[1641911478725,0.00120695,41335.0,41333.0,0.001125]
[1641911478925,0.10280247,41335.0,41333.0,0.001125]
[1641911479173,0.25,41333.0,41332.0,0.0003532]
[1641911479377,0.57400558,41333.0,41332.0,0.0003532]
[1641911479574,1.05172408,41333.0,41332.0,0.0003532]
[1641911479975,0.3582545,41333.0,41332.0,0.0003532]
[1641911480478,0.33205383,41329.0,41326.0,0.07369296]
[1641911480677,0.30125736,41327.0,41322.0,5.001125]
[1641911480876,0.03768448,41327.0,41322.0,4.9932691]
[1641911481077,1.272,41325.0,41322.0,4.9932691]
[1641911481276,0.00123731,41323.0,41322.0,4.9932691]
[1641911481479,0.72035719,41323.0,41322.0,4.4518691]
[1641911481676,1.72855588,41323.0,41322.0,1.79209383]
[1641911481882,1.0,41320.0,41294.0,0.0457125]
[1641911482180,1.1,41315.0,41312.0,0.01789135]
[1641911482377,1.57008292,41315.0,41312.0,0.01789135]
[1641911482677,0.45,41312.0,41307.0,4.0]
[1641911482930,0.00126203,41309.0,41307.0,4.0]
[1641911483120,1.272,41310.0,41308.0,0.371464]
[1641911483320,1.272,41310.0,41307.0,4.0]
[1641911483321,0.86521367,41310.0,41307.0,4.0]
[1641911483520,0.0444,41312.0,41307.0,4.0]
[1641911483521,0.0444,41313.0,41310.0,1.661854]
[1641911483724,0.06050534,41328.0,41313.0,1.3]
[1641911483922,0.0444,41327.0,41323.0,0.36395179]
[1641911484120,0.0444,41327.0,41315.0,0.00127601]
[1641911484323,0.0444,41327.0,41319.0,0.060492]
[1641911484528,0.30919716,41334.0,41322.0,0.40329802]
[1641911484722,0.30919716,41334.0,41330.0,0.25648365]
[1641911485122,0.78528026,41334.0,41330.0,0.25648365]
[1641911485325,0.78528026,41334.0,41324.0,0.120973]
[1641911485526,0.78528026,41334.0,41324.0,0.115973]
[1641911485723,0.78613995,41334.0,41324.0,0.115973]
[1641911485923,0.00122326,41332.0,41324.0,0.115973]
[1641911486327,0.00122326,41332.0,41318.0,0.44018254]
[1641911486529,0.00122326,41332.0,41321.0,0.40013596]
[1641911486763,0.00122326,41332.0,41322.0,0.060493]
[1641911486964,0.00085971,41330.0,41322.0,0.060493]
[1641911487364,0.00085971,41330.0,41324.0,0.31000755]
[1641911487967,0.02485971,41330.0,41324.0,0.31000755]
[1641911488266,0.00085973,41328.0,41324.0,0.31000755]
[1641911488468,0.00085973,41328.0,41327.0,0.911676]
[1641911488865,0.00085973,41328.0,41327.0,0.361676]
[1641911489265,0.024,41330.0,41327.0,0.361676]
[1641911489266,0.000766,41330.0,41327.0,0.361676]
[1641911489671,0.000766,41330.0,41329.0,1.661654]
[1641911489867,0.38785266,41340.0,41330.0,1.3]
[1641911490067,0.00121196,41347.0,41338.0,0.060468]
[1641911490268,0.38906462,41347.0,41338.0,0.060468]
[1641911490538,0.38785266,41344.0,41342.0,0.28899886]
[1641911490939,0.00728697,41348.0,41342.0,0.28899886]
[1641911491138,0.00728697,41348.0,41342.0,0.34946186]
[1641911491340,0.1,41350.0,41344.0,1.661501]
[1641911491542,0.1,41350.0,41345.0,1.3]
[1641911491740,0.42,41364.0,41345.0,1.3]
[1641911491741,0.38785266,41362.0,41350.0,1.3]
[1641911491943,0.38785266,41368.0,41358.0,0.37497145]
[1641911492141,0.4505,41369.0,41361.0,0.120862]
[1641911492142,0.23854921,41363.0,41361.0,0.120862]
[1641911492539,0.4505,41369.0,41361.0,0.120862]
[1641911492940,0.42493386,41363.0,41361.0,0.120862]
[1641911493439,0.32091122,41363.0,41361.0,0.120862]
[1641911493840,0.32091122,41363.0,41359.0,0.120866]
[1641911494039,0.33591122,41363.0,41361.0,0.003]
[1641911494774,1.70543037,41362.0,41361.0,0.003]
[1641911494977,1.7066565,41362.0,41361.0,0.003]
[1641911495271,1.7066565,41362.0,41344.0,1.0]
[1641911495272,0.00129848,41355.0,41344.0,1.0]
[1641911495471,0.376551,41354.0,41344.0,1.0]
[1641911495670,0.00126083,41352.0,41342.0,0.43754711]
[1641911495870,0.00126083,41352.0,41344.0,0.06046]
[1641911496273,0.00126083,41352.0,41345.0,0.361482]
[1641911496474,0.00086074,41349.0,41345.0,0.361482]
[1641911496871,0.00086074,41349.0,41348.0,0.761458]
[1641911497071,0.00086074,41349.0,41348.0,0.361458]
[1641911497478,0.00086074,41349.0,41348.0,0.861458]
[1641911497671,0.0007657,41351.0,41348.0,0.861458]
[1641911497931,0.0007657,41351.0,41350.0,1.721886]
[1641911498119,0.00306185,41363.0,41352.0,0.00128416]
[1641911498319,0.00306185,41363.0,41358.0,0.36135393]
[1641911498520,0.00306185,41363.0,41355.0,0.120857]
[1641911498920,0.32467659,41364.0,41358.0,0.3037587]
[1641911499124,0.00122821,41359.0,41358.0,0.060441]
[1641911499322,0.00122821,41359.0,41350.0,0.45955357]
[1641911499523,0.00122821,41359.0,41351.0,0.361412]
[1641911499821,0.38589862,41363.0,41351.0,0.361412]
[1641911499822,0.38589862,41363.0,41351.0,0.48356953]
[1641911500027,0.016,41359.0,41354.0,0.060444]
[1641911500221,0.016,41359.0,41354.0,0.181329]
[1641911500422,0.016,41359.0,41356.0,0.060439]
[1641911501324,0.00126806,41357.0,41344.0,0.060463]
[1641911501525,0.00126298,41353.0,41345.0,0.361471]
[1641911501767,0.34719394,41353.0,41342.0,1.0]
[1641911502169,0.002,41353.0,41350.0,0.33805676]
[1641911502370,0.002,41353.0,41351.0,0.361424]
[1641911502573,0.00286066,41353.0,41351.0,0.421875]
[1641911502767,0.00286066,41353.0,41352.0,0.361415]
[1641911503068,0.00286066,41353.0,41352.0,0.63436767]
[1641911503268,0.00086066,41353.0,41352.0,0.93436767]
[1641911503668,0.00086071,41355.0,41352.0,0.63436767]
[1641911503870,0.00086071,41355.0,41354.0,1.661395]
[1641911504070,0.0236,41362.0,41355.0,1.3]
[1641911504269,0.0236,41362.0,41359.0,0.361343]
[1641911504469,0.0236,41362.0,41361.0,0.361322]
[1641911504870,0.0236,41362.0,41361.0,0.82898502]
[1641911505519,0.36326039,41373.0,41361.0,0.421759]
[1641911505720,0.00126632,41367.0,41356.0,0.50153942]
[1641911505919,0.00126632,41367.0,41354.0,0.120884]
[1641911506117,0.00052006,41364.0,41354.0,0.120884]
[1641911506318,0.32722633,41363.0,41354.0,0.120884]
[1641911506519,0.36629291,41362.0,41353.0,0.47062927]
[1641911506720,0.36629291,41362.0,41351.0,0.120888]
[1641911506918,0.46629291,41362.0,41354.0,0.120894]
[1641911507120,0.46629291,41362.0,41351.0,0.241781]
[1641911507319,0.00076781,41360.0,41351.0,0.24210641]
[1641911507921,0.00076781,41360.0,41354.0,0.060448]
[1641911508122,0.46528353,41358.0,41354.0,0.060448]
[1641911508424,0.81718673,41357.0,41351.0,0.00032542]
[1641911508626,0.00122686,41352.0,41351.0,0.00032542]
[1641911508923,1.38523662,41352.0,41351.0,0.00032542]
[1641911509166,1.908171,41352.0,41351.0,0.00032542]
[1641911509367,1.90239794,41352.0,41351.0,0.00032542]
[1641911509765,1.90239794,41352.0,41342.0,1.41126388]
[1641911509766,0.95239794,41352.0,41349.0,0.00032206]
[1641911509967,0.2016857,41352.0,41349.0,0.00032206]
[1641911510268,0.33133484,41351.0,41349.0,0.00032206]
[1641911510466,0.9444,41350.0,41349.0,0.00032206]
[1641911510666,1.82967807,41350.0,41349.0,0.00032206]
[1641911510867,1.82967807,41350.0,41348.0,0.00032207]
[1641911511066,1.28744859,41349.0,41338.0,0.12093]
[1641911511268,0.36636591,41344.0,41338.0,0.12093]
[1641911511467,0.36636591,41344.0,41335.0,0.120939]
[1641911511468,0.39619814,41343.0,41336.0,0.060472]
[1641911511668,0.51636591,41344.0,41336.0,0.060472]
[1641911511867,0.15241019,41344.0,41334.0,0.12222875]
[1641911512068,0.008,41343.0,41339.0,0.25538057]
[1641911512568,0.0444,41342.0,41339.0,0.25538057]
[1641911512770,0.0444,41342.0,41336.0,0.060472]
[1641911513219,0.0444,41342.0,41339.0,0.120923]
[1641911513516,0.39619814,41347.0,41339.0,0.120923]
[1641911513715,0.1,41349.0,41346.0,0.30665227]
[1641911513918,0.1,41347.0,41346.0,0.30665227]
[1641911514117,0.014,41347.0,41346.0,0.36710627]
[1641911514916,0.014,41347.0,41344.0,0.12091]
[1641911515320,0.57859915,41350.0,41344.0,0.12091]
[1641911515516,0.57859915,41350.0,41343.0,0.120913]
[1641911515517,0.57859915,41350.0,41343.0,0.181377]
[1641911515717,0.57859915,41350.0,41343.0,0.18169743]
[1641911515718,0.24,41350.0,41343.0,0.18169743]
[1641911516117,0.33303113,41349.0,41343.0,0.13523343]
[1641911516518,0.241,41350.0,41347.0,0.26822104]
[1641911516764,0.241,41350.0,41343.0,0.19569543]
[1641911516965,0.241,41350.0,41344.0,0.00030941]
[1641911517465,0.7515494,41349.0,41344.0,0.00030941]
[1641911517666,0.00888552,41345.0,41344.0,0.00030941]
[1641911517970,1.57206644,41345.0,41344.0,0.00030941]
[1641911518164,1.72206644,41345.0,41333.0,0.00123793]
[1641911518366,0.0444,41344.0,41333.0,0.00123793]
[1641911518764,0.0444,41344.0,41339.0,0.33171013]
[1641911518965,0.0444,41344.0,41340.0,0.422003]
[1641911519164,0.0444,41344.0,41333.0,0.00123793]
[1641911519364,0.35498868,41344.0,41336.0,0.0003095]
[1641911519566,0.45498868,41344.0,41336.0,0.0003095]
[1641911519765,0.06047225,41341.0,41336.0,0.1212415]
[1641911519965,0.06047225,41341.0,41338.0,0.3111685]
[1641911520421,0.06047225,41341.0,41336.0,0.00056042]
[1641911520621,0.06047225,41341.0,41336.0,0.00025092]
[1641911520622,0.00533722,41341.0,41336.0,0.00025092]
[1641911520916,0.04231462,41339.0,41336.0,0.00025092]
[1641911521116,0.51588865,41338.0,41336.0,0.00025092]
[1641911521317,0.481437,41338.0,41336.0,0.00025092]
[1641911521522,1.46062019,41337.0,41336.0,0.00025092]
[1641911521717,1.46062019,41337.0,41335.0,0.00025093]
[1641911521718,1.84493244,41337.0,41335.0,0.00025093]
[1641911521918,1.026551,41336.0,41335.0,0.00025093]
[1641911522120,1.17220076,41336.0,41335.0,0.00025093]
[1641911522319,1.17964005,41336.0,41329.0,0.00100388]
[1641911522520,0.0605,41333.0,41329.0,0.00100388]
[1641911522720,0.42076374,41332.0,41329.0,0.00100388]
[1641911522921,0.42076374,41332.0,41327.0,0.00100396]
[1641911523125,0.47234812,41331.0,41327.0,0.00100396]
[1641911523321,0.47234812,41331.0,41327.0,3.96e-06]
[1641911523322,1.3,41329.0,41327.0,3.96e-06]
[1641911523520,1.3,41329.0,41319.0,0.0032]
[1641911524023,0.57651,41328.0,41319.0,0.0032]
[1641911524565,0.57651,41328.0,41319.0,0.0021]
[1641911524770,0.06051751,41325.0,41317.0,0.08822925]
[1641911524964,0.00121767,41320.0,41317.0,0.08822925]
[1641911525169,0.39619814,41327.0,41318.0,0.00125877]
[1641911525366,0.06838933,41322.0,41318.0,0.00125877]
[1641911525566,0.0444,41326.0,41318.0,0.44941251]
[1641911525771,0.0444,41326.0,41321.0,0.060494]
[1641911525968,0.0444,41326.0,41322.0,0.060492]
[1641911526166,0.015,41326.0,41323.0,0.361916]
[1641911526367,0.015,41326.0,41325.0,0.36189]
[1641911526565,0.015,41326.0,41325.0,1.95755488]
[1641911527167,0.25769253,41342.0,41326.0,1.3]
[1641911527367,0.3181637,41342.0,41330.0,0.060469]
[1641911527571,0.3181637,41342.0,41335.0,0.26131643]
[1641911527767,0.00086068,41337.0,41335.0,0.26131643]
[1641911528024,0.00086068,41337.0,41336.0,0.361774]
[1641911528224,0.00086068,41337.0,41335.0,0.002]
[1641911529425,0.376495,41336.0,41324.0,0.72016138]
[1641911529624,0.0604913,41331.0,41324.0,0.13308479]
[1641911529824,0.00549378,41331.0,41325.0,0.0002815]
[1641911530223,0.00849378,41331.0,41325.0,0.0002815]
[1641911530424,0.06897978,41331.0,41325.0,0.0002815]
[1641911530624,0.06049079,41328.0,41325.0,0.0002815]
[1641911530824,0.06049079,41328.0,41315.0,0.40168411]
[1641911531029,0.003,41331.0,41325.0,0.0002815]
[1641911531030,0.15,41330.0,41325.0,0.0002815]
[1641911531225,0.4491396,41330.0,41325.0,0.0002815]
[1641911531428,0.1,41326.0,41325.0,0.0002815]
[1641911531673,0.4934023,41326.0,41325.0,0.0002815]
[1641911531873,1.16688994,41326.0,41325.0,0.0002815]
[1641911532073,1.16688994,41326.0,41313.0,0.00023453]
[1641911532074,1.26688994,41326.0,41313.0,0.00023453]
[1641911532275,0.80239494,41326.0,41325.0,0.003]
[1641911532474,1.51888994,41326.0,41325.0,0.003]
[1641911532873,1.56888994,41326.0,41325.0,0.003]
[1641911533073,1.57405577,41326.0,41325.0,0.003]
[1641911533273,1.91726351,41326.0,41325.0,0.003]
[1641911533474,0.060504,41322.0,41313.0,0.00023454]
[1641911533677,0.06050252,41320.0,41313.0,0.00023454]
[1641911533876,0.1,41318.0,41315.0,0.060503]
[1641911534077,0.24,41326.0,41317.0,0.26321718]
[1641911534278,0.00542644,41335.0,41317.0,0.26321718]
[1641911534279,0.02791,41336.0,41321.0,0.261896]
[1641911534475,0.02791,41336.0,41326.0,0.060465]
[1641911534675,0.00293509,41345.0,41333.0,0.46377962]
[1641911534876,0.1,41342.0,41341.0,1.20762564]
[1641911535175,0.00293509,41345.0,41341.0,1.5150427]
[1641911535424,0.00293509,41345.0,41344.0,1.21297126]
[1641911535617,0.0072857,41352.0,41345.0,1.3]
[1641911535819,0.0072857,41352.0,41349.0,0.261674]
[1641911536016,0.1,41361.0,41348.0,0.00122579]
[1641911536017,0.1,41361.0,41351.0,1.311658]
[1641911536222,0.00523429,41362.0,41353.0,0.00124031]
[1641911536417,0.00523429,41362.0,41354.0,0.28352256]
[1641911536816,0.58660901,41372.0,41354.0,0.28352256]
[1641911536817,0.00578013,41369.0,41358.0,0.00120278]
[1641911537018,0.00578013,41369.0,41362.0,0.060425]
[1641911537418,0.00578013,41369.0,41350.0,0.181292]
[1641911537419,0.85,41362.0,41350.0,0.181292]
[1641911537620,0.85,41362.0,41351.0,0.0444]
[1641911537621,0.00126263,41358.0,41351.0,0.0444]
[1641911537821,0.55,41352.0,41342.0,0.07256521]
[1641911538017,0.65,41352.0,41343.0,0.38800608]
[1641911538216,0.65,41352.0,41351.0,0.007]
[1641911538418,0.65606577,41352.0,41351.0,0.007]
[1641911538822,0.06046185,41349.0,41340.0,0.199912]
[1641911539039,0.1,41341.0,41340.0,0.01856]
[1641911539269,0.15,41341.0,41340.0,0.01856]
[1641911539669,0.48153028,41341.0,41340.0,0.01856]
[1641911539868,0.48282271,41341.0,41340.0,0.01856]
[1641911540068,0.15,41341.0,41340.0,0.01856]
[1641911540267,0.164,41341.0,41340.0,0.02056]
[1641911540670,0.2084,41341.0,41340.0,0.02056]
[1641911540868,1.04640608,41341.0,41340.0,0.02056]
[1641911541069,0.59640608,41341.0,41340.0,0.02056]
[1641911541270,0.55200608,41341.0,41340.0,0.02056]
[1641911541572,0.55200608,41341.0,41338.0,0.00056972]
[1641911541573,0.91579531,41341.0,41338.0,0.00056972]
[1641911541770,0.91579531,41341.0,41338.0,0.00028486]
[1641911541771,1.77772244,41339.0,41338.0,0.00028486]
[1641911541969,1.87212244,41339.0,41338.0,0.00028486]
[1641911542169,0.55,41338.0,41319.0,0.00113997]
[1641911542370,0.1,41320.0,41319.0,0.00113997]
[1641911542569,0.1,41320.0,41319.0,0.6573736]
[1641911542768,0.1,41323.0,41319.0,0.6573736]
[1641911543024,0.0444,41329.0,41322.0,0.26189]
[1641911543222,0.00591769,41334.0,41327.0,1.3]
[1641911543423,0.00741457,41334.0,41328.0,0.261837]
[1641911543620,0.1,41335.0,41328.0,0.261837]
[1641911543820,0.39660842,41340.0,41328.0,0.261837]
[1641911544021,0.1,41332.0,41331.0,0.3369702]
[1641911544225,0.007,41335.0,41331.0,0.7197272]
[1641911544421,0.007,41335.0,41332.0,0.261807]
[1641911544722,0.107,41335.0,41334.0,0.65]
[1641911544921,0.12094244,41346.0,41335.0,0.85]
[1641911544922,0.38800608,41345.0,41335.0,0.85]
[1641911545324,0.1008606,41346.0,41344.0,0.36869475]
[1641911545522,0.0008606,41346.0,41345.0,0.861705]
[1641911546123,0.1,41354.0,41346.0,1.3]
[1641911546323,0.0034417,41355.0,41353.0,0.95764247]
[1641911546526,0.0034417,41355.0,41354.0,1.561633]
[1641911546527,0.00344242,41355.0,41354.0,1.561633]
[1641911546774,0.00344242,41355.0,41354.0,0.961633]
[1641911546971,0.1,41363.0,41355.0,1.15]
[1641911547173,2.85012425,41368.0,41361.0,0.45785863]
[1641911547174,0.33345251,41366.0,41361.0,0.45785863]
[1641911547371,0.43345251,41366.0,41361.0,0.45785863]
[1641911547572,0.1,41366.0,41362.0,0.120846]
[1641911547771,0.1,41366.0,41363.0,0.261567]
[1641911547973,0.3678,41371.0,41363.0,0.261567]
[1641911548172,0.006,41366.0,41364.0,0.00129453]
[1641911548374,0.006,41366.0,41362.0,0.003]
[1641911548375,0.1,41365.0,41362.0,0.003]
[1641911549280,0.38003871,41365.0,41362.0,0.003]
[1641911549476,0.43003871,41365.0,41361.0,0.120845]
[1641911549675,0.1,41362.0,41361.0,0.120845]
[1641911550275,0.15,41362.0,41361.0,0.123845]
[1641911550519,0.15,41362.0,41361.0,0.003]
[1641911550721,1.476495,41362.0,41361.0,0.003]
[1641911550920,1.476495,41362.0,41353.0,0.00030971]
[1641911550921,0.85,41361.0,41353.0,0.00030971]
[1641911551119,1.00127946,41354.0,41353.0,0.00030971]
[1641911551318,1.38573117,41354.0,41353.0,0.00030972]
[1641911551521,0.48432468,41354.0,41353.0,0.00030972]
[1641911551719,0.82777446,41354.0,41353.0,0.00030972]
[1641911551921,0.98464409,41354.0,41353.0,0.00030972]
[1641911552118,0.55686963,41354.0,41353.0,0.00030972]
[1641911552319,0.603,41354.0,41353.0,0.01330972]
[1641911552520,0.343,41354.0,41353.0,0.013]
[1641911552719,0.593,41354.0,41353.0,0.013]
[1641911552917,0.343,41354.0,41353.0,0.013]
[1641911553118,0.443,41354.0,41353.0,0.013]
[1641911553318,0.493,41354.0,41353.0,0.073446]
[1641911553521,0.34,41354.0,41353.0,0.060446]
[1641911553719,0.34,41354.0,41353.0,0.360446]
[1641911553720,0.24,41354.0,41353.0,0.360446]
[1641911553919,0.23371566,41354.0,41353.0,0.3233254]
[1641911554165,0.23371566,41354.0,41353.0,0.3283254]
[1641911554365,0.23371566,41354.0,41353.0,0.327086]
[1641911555366,0.33371566,41354.0,41353.0,0.327086]
[1641911555567,0.33371566,41354.0,41353.0,0.060446]
[1641911556168,0.33371566,41354.0,41353.0,0.072446]
[1641911556570,0.23371566,41354.0,41353.0,0.072446]
[1641911556869,0.33371566,41354.0,41353.0,0.334086]
[1641911557073,0.23371566,41354.0,41353.0,0.334086]
[1641911557270,0.33371566,41354.0,41353.0,0.334086]
[1641911557469,0.33371566,41354.0,41353.0,0.322086]
[1641911557669,0.33371566,41354.0,41353.0,0.317086]
[1641911557928,0.33371566,41354.0,41353.0,0.367086]
[1641911558321,0.33371566,41354.0,41353.0,0.377086]
[1641911558722,0.58371566,41354.0,41353.0,0.06]
[1641911558923,0.73371566,41354.0,41353.0,0.06]
[1641911559124,1.11939839,41354.0,41353.0,0.06]
[1641911559726,2.05903528,41354.0,41353.0,0.05]
[1641911560322,1.73839839,41354.0,41353.0,0.0001]
[1641911561524,1.71939839,41354.0,41353.0,0.0001]
[1641911561768,1.76379839,41354.0,41353.0,0.0001]
[1641911561969,0.00128437,41352.0,41351.0,0.00027547]
[1641911562168,0.00128437,41352.0,41351.0,0.00027622]
[1641911562169,2.13605592,41352.0,41351.0,0.00027622]
[1641911562372,2.18605592,41352.0,41351.0,0.00027622]
[1641911562568,2.28605592,41352.0,41351.0,0.00027622]
[1641911562769,2.54496029,41352.0,41351.0,0.00027622]
[1641911563369,2.54496029,41352.0,41349.0,0.00027624]
[1641911563569,1.15,41350.0,41349.0,0.00027624]
[1641911563770,1.91680302,41350.0,41349.0,0.00027624]
[1641911563969,2.01680302,41350.0,41349.0,0.00027624]
[1641911564370,2.03480302,41350.0,41349.0,0.00027624]
[1641911564570,2.03480302,41350.0,41347.0,0.00027626]
[1641911564873,0.426495,41349.0,41347.0,0.00027626]
[1641911565069,1.0399332,41348.0,41347.0,0.00027626]
[1641911565271,1.4164282,41348.0,41347.0,0.00027626]
[1641911565521,1.5164282,41348.0,41347.0,0.00027626]
[1641911565726,0.10110724,41349.0,41346.0,0.00027618]
[1641911565923,0.1,41347.0,41346.0,0.00027618]
[1641911566422,0.1,41347.0,41346.0,0.00127618]
[1641911566622,0.15,41347.0,41346.0,0.00127618]
[1641911567024,0.15,41347.0,41346.0,0.001]
[1641911567223,0.018,41349.0,41346.0,0.001]
[1641911567624,0.1,41347.0,41345.0,0.060456]
[1641911567822,0.1,41347.0,41346.0,0.261695]
[1641911568324,0.105,41347.0,41346.0,0.54284471]
[1641911568522,0.105,41347.0,41346.0,0.94284471]
[1641911568726,0.005,41347.0,41346.0,0.94284471]
[1641911569173,0.005,41347.0,41346.0,0.94405663]
[1641911569375,0.1,41352.0,41347.0,1.3]
[1641911569574,0.1,41352.0,41351.0,0.711659]
[1641911569778,0.1,41352.0,41351.0,0.322098]
[1641911570175,0.1,41352.0,41351.0,0.261659]
[1641911570375,0.15,41352.0,41351.0,0.004]
[1641911570576,0.1,41352.0,41351.0,0.754]
[1641911570776,0.00074709,41357.0,41351.0,1.48463326]
[1641911570976,0.00074709,41357.0,41355.0,0.26291288]
[1641911571177,0.00074709,41357.0,41356.0,1.111617]
[1641911571379,0.00074709,41357.0,41356.0,1.112855]
[1641911571678,0.00074709,41357.0,41356.0,0.262855]
[1641911571878,0.09345563,41358.0,41357.0,0.810431]
[1641911572080,0.09345563,41358.0,41357.0,1.072039]
[1641911572279,0.00074712,41358.0,41357.0,1.072039]
[1641911572481,0.09270851,41366.0,41357.0,1.622039]
[1641911572683,0.00298782,41367.0,41359.0,0.181254]
[1641911572931,0.00298788,41367.0,41363.0,0.26276928]
[1641911573123,0.00298788,41367.0,41366.0,0.031539]
[1641911573323,0.00298788,41367.0,41366.0,0.32845566]
[1641911573723,0.00298788,41367.0,41365.0,0.06041]
[1641911574122,0.09270851,41368.0,41365.0,0.06041]
[1641911574323,0.09270851,41368.0,41365.0,0.06541]
[1641911574724,0.09270851,41368.0,41366.0,0.31608069]
[1641911575028,0.05,41367.0,41366.0,0.31608069]
[1641911575223,0.14270851,41367.0,41366.0,0.31608069]
[1641911575423,0.05,41367.0,41366.0,0.31608069]
[1641911575826,0.09270851,41369.0,41366.0,0.31608069]
[1641911575827,0.14270851,41369.0,41366.0,0.31608069]
[1641911576024,0.14270851,41369.0,41365.0,0.06041]
[1641911576224,0.14270851,41369.0,41366.0,0.002]
[1641911576669,0.14353808,41369.0,41366.0,0.002]
[1641911577072,0.09353808,41369.0,41366.0,0.002]
[1641911577472,0.00082957,41369.0,41365.0,0.120827]
[1641911577676,0.00082957,41369.0,41365.0,0.12209884]
[1641911577974,0.09344644,41370.0,41368.0,0.060418]
[1641911578775,0.9,41368.0,41365.0,0.005]
[1641911578979,1.34391477,41366.0,41365.0,0.005]
[1641911579173,1.34391477,41366.0,41354.0,0.00156726]
[1641911579174,0.45,41365.0,41354.0,0.00028962]
[1641911579373,0.45,41365.0,41358.0,0.060437]
[1641911579374,0.09270851,41363.0,41358.0,0.060437]
[1641911579574,0.14270851,41363.0,41358.0,0.060437]
[1641911579774,0.09270851,41361.0,41358.0,0.32994261]
[1641911579975,0.14270851,41361.0,41358.0,0.32994261]
[1641911580180,0.09270851,41361.0,41358.0,0.060437]
[1641911580429,0.09270851,41361.0,41359.0,0.031561]
[1641911580430,0.14470851,41361.0,41359.0,0.031561]
[1641911580621,0.14470851,41361.0,41358.0,0.064437]
[1641911581423,0.09470851,41361.0,41358.0,0.064437]
[1641911581623,0.0007406,41362.0,41358.0,0.060437]
[1641911581824,0.0007406,41362.0,41359.0,0.03156]